fUST/lending_fUST_20241112
["ID","MTS","AMOUNT","RATE_DAILY","PERIOD"]
[342001624,1731355859669,-1170.42,0.00023013,2]
[342001625,1731355859679,-500.0,0.00023013,2]
[342001626,1731355859689,-500.0,0.00023013,2]
[342001627,1731355859699,-2243.38,0.00023013,2]
[342001628,1731355859709,-500.0,0.00023013,2]
[342001629,1731355859718,-500.0,0.00023013,2]
[342001630,1731355859727,-500.0,0.00023013,2]
[342001631,1731355859736,-500.0,0.00023013,2]
[342001632,1731355859746,-500.0,0.00023013,2]
[342001633,1731355859755,-500.0,0.00023013,2]
[342001634,1731355859764,-549.94704995,0.00023013,2]
[342001635,1731355859779,-500.0,0.00023013,2]
[342001636,1731355859788,-500.0,0.00023013,2]
[342001637,1731355859798,-459.95764124,0.00023013,2]
[342001638,1731355859807,-151.0,0.00023013,7]
[342001639,1731355859816,-500.0,0.00023013,2]
[342001640,1731355859826,-500.0,0.00023013,2]
[342001641,1731355859835,-500.0,0.00023013,2]
[342001642,1731355859844,-1768.39,0.00023013,2]
[342001643,1731355859854,-450.93347643,0.00023013,2]
[342001644,1731355859863,-500.0,0.00023013,2]
[342001645,1731355859872,-848.08,0.00023013,2]
[342001646,1731355859882,-248.5163997,0.00023013,2]
[342001647,1731355859892,-110.0010264,0.00023013,7]
[342001648,1731355860045,-155.0926286,0.00023013,7]
[342001649,1731355860055,-265.093655,0.00023013,7]
[342001650,1731355860065,-557.33,0.00023013,2]
[342001651,1731355860076,-1298.81,0.00023013,2]
[342001652,1731355860086,-578.39,0.00023013,2]
[342001653,1731355860095,-500.0,0.00023013,2]
[342001654,1731355860105,-198.744429,0.00023013,7]
[342001655,1731355860114,-500.0,0.00023013,2]
[342001656,1731355860123,-198.744429,0.00023013,7]
[342001657,1731355860133,-1424.44,0.00023013,2]
[342001658,1731355860142,-500.0,0.00023013,2]
[342001659,1731355860151,-924.32,0.00023013,2]
[342001660,1731355860160,-538.71,0.00023013,2]
[342001661,1731355860170,-151.0,0.00023013,7]
[342001662,1731355860179,-151.0,0.00023013,7]
[342001663,1731355860189,-500.0,0.00023013,2]
[342001664,1731355860199,-866.81,0.00023013,2]
[342001665,1731355860208,-520.28545118,0.00023013,2]
[342001666,1731355860217,-3916.0,0.00023013,2]
[342001667,1731355860227,-258.965566,0.00023013,7]
[342001668,1731355860236,-500.0,0.00023013,2]
[342001669,1731355860245,-979.82,0.00023013,2]
[342001670,1731355860254,-258.965566,0.00023013,7]
[342001671,1731355860263,-773.57,0.00023013,2]
[342001672,1731355860276,-500.0,0.00023013,2]
[342001673,1731355860285,-627.61,0.00023013,2]
[342001674,1731355860294,-1423.21,0.00023013,2]
[342001675,1731355860304,-1410.09,0.00023013,2]
[342001676,1731355860314,-500.0,0.00023013,2]
[342001677,1731355860323,-1799.86,0.00023013,2]
[342001678,1731355860332,-500.0,0.00023013,2]
[342001679,1731355860341,-500.0,0.00023013,2]
[342001680,1731355860350,-500.0,0.00023013,2]
[342001681,1731355860360,-337.64558045,0.00023013,2]
[342001682,1731355860370,-500.0,0.00023013,2]
[342001683,1731355860379,-151.0,0.00023013,7]
[342001684,1731355860388,-366.69527761,0.00023013,2]
[342001685,1731355860398,-500.0,0.00023013,2]
[342001686,1731355860407,-556.67508852,0.00023013,2]
[342001687,1731355860417,-502.17,0.00023013,2]
[342001688,1731355860426,-635.42,0.00023013,2]
[342001689,1731355860435,-500.0,0.00023013,2]
[342001690,1731355860444,-4457.62,0.00023013,2]
[342001691,1731355860453,-500.0,0.00023013,2]
[342001692,1731355860462,-151.0,0.00023013,7]
[342001693,1731355860472,-1959.14,0.00023013,2]
[342001694,1731355860481,-151.0,0.00023013,7]
[342001695,1731355860490,-151.0,0.00023013,7]
[342001696,1731355860499,-500.0,0.00023013,2]
[342001697,1731355860509,-797.46,0.00023013,2]
[342001698,1731355860519,-151.0,0.00023013,7]
[342001699,1731355860529,-151.0,0.00023013,7]
[342001700,1731355860538,-1372.25,0.00023013,2]
[342001701,1731355860547,-151.0,0.00023013,7]
[342001702,1731355860557,-500.0,0.00023013,2]
[342001703,1731355860566,-533.77,0.00023013,2]
[342001704,1731355860575,-210.887696,0.00023013,7]
[342001705,1731355860584,-500.0,0.00023013,2]
[342001706,1731355860594,-775.44,0.00023013,2]
[342001707,1731355860603,-210.887696,0.00023013,7]
[342001708,1731355860613,-1264.27,0.00023013,2]
[342001709,1731355860622,-2436.92,0.00023013,2]
[342001710,1731355860631,-936.67,0.00023013,2]
[342001711,1731355860640,-500.0,0.00023013,2]
[342001712,1731355860650,-151.0,0.00023013,7]
[342001713,1731355860659,-500.0,0.00023013,2]
[342001714,1731355860669,-500.0,0.00023013,2]
[342001715,1731355860678,-2021.65,0.00023013,2]
[342001716,1731355860688,-1853.63,0.00023013,2]
[342001717,1731355860698,-500.0,0.00023013,2]
[342001718,1731355860707,-500.0,0.00023013,2]
[342001719,1731355860716,-500.0,0.00023013,2]
[342001720,1731355860726,-500.0,0.00023013,2]
[342001721,1731355860735,-5738.72,0.00023013,2]
[342001722,1731355860744,-500.0,0.00023013,2]
[342001723,1731355860753,-500.0,0.00023013,2]
[342001724,1731355860764,-500.0,0.00023013,2]
[342001725,1731355860777,-500.0,0.00023013,2]
[342001726,1731355860787,-1021.15,0.00023013,2]
[342001727,1731355860798,-500.0,0.00023013,2]
[342001728,1731355860808,-500.0,0.00023013,2]
[342001729,1731355860819,-500.0,0.00023013,2]
[342001730,1731355860831,-500.0,0.00023013,2]
[342001731,1731355860843,-500.0,0.00023013,2]
[342001732,1731355860853,-500.0,0.00023013,2]
[342001733,1731355860864,-500.0,0.00023013,2]
[342001734,1731355860875,-4862.85,0.00023013,2]
[342001735,1731355860886,-183.890743,0.00023013,2]
[342001736,1731355860897,-183.890743,0.00023013,2]
[342001737,1731355860907,-17000.17387085,0.00023013,2]
[342001738,1731355860922,-2539.40612915,0.00023013,2]
[342001739,1731355860934,-88.51275337,0.00023013,2]
[342001740,1731355860947,-79.85563189,0.00023013,2]
[342001741,1731355860959,-500.0,0.00023013,2]
[342001742,1731355860968,-500.0,0.00023013,2]
[342001743,1731355860979,-458.0,0.00023014,2]
[342001744,1731355860988,-158.0,0.00023014,2]
[342001745,1731355860998,-500.0,0.00023073,2]
[342001746,1731355861010,-612.17415718,0.00023073,2]
[342001747,1731355861024,-500.0,0.00023073,2]
[342001748,1731355861034,-500.0,0.00023073,2]
[342001749,1731355861043,-507.88111795,0.00023073,2]
[342001750,1731355861052,-500.0,0.00023073,2]
[342001751,1731355861061,-150.05,0.00023074,8]
[342001752,1731355861070,-150.05,0.00023074,8]
[342001753,1731355861079,-150.05,0.00023074,8]
[342001754,1731355861088,-500.0,0.00023074,8]
[342001755,1731355861097,-150.05,0.00023074,8]
[342001756,1731355861106,-150.05,0.00023074,8]
[342001757,1731355861116,-500.0,0.00023074,8]
[342001758,1731355861125,-500.0,0.00023074,8]
[342001759,1731355861135,-500.0,0.00023074,8]
[342001760,1731355861145,-151.0,0.00023074,7]
[342001761,1731355861154,-210.887696,0.00023074,7]
[342001762,1731355861163,-210.887696,0.00023074,7]
[342001763,1731355861173,-151.0,0.00023074,7]
[342001764,1731355861182,-183.890743,0.00023074,2]
[342001765,1731355861191,-183.890743,0.00023074,2]
[342001766,1731355861200,-151.0,0.00023287,7]
[342001767,1731355861210,-500.0,0.00023287,2]
[342001768,1731355861219,-500.0,0.00023287,2]
[342001769,1731355861228,-500.0,0.00023287,2]
[342001770,1731355861237,-500.0,0.00023287,2]
[342001771,1731355861246,-500.0,0.00023287,2]
[342001772,1731355861255,-151.0,0.00023287,7]
[342001773,1731355861264,-500.0,0.00023287,2]
[342001774,1731355861278,-568.8,0.00023287,2]
[342001775,1731355861287,-151.0,0.00023287,7]
[342001776,1731355861296,-151.0,0.00023287,3]
[342001777,1731355861305,-151.0,0.00023287,7]
[342001778,1731355861314,-500.0,0.00023287,2]
[342001779,1731355861323,-500.0,0.00023287,2]
[342001780,1731355861336,-841.82,0.00023287,2]
[342001781,1731355861345,-500.0,0.00023287,2]
[342001782,1731355861354,-500.0,0.00023287,2]
[342001783,1731355861363,-500.0,0.00023287,2]
[342001784,1731355861373,-500.0,0.00023287,2]
[342001785,1731355861382,-500.0,0.00023287,2]
[342001786,1731355861391,-500.0,0.00023287,2]
[342001787,1731355861400,-500.0,0.00023287,2]
[342001788,1731355861410,-500.0,0.00023287,2]
[342001789,1731355861418,-665.31,0.00023287,2]
[342001790,1731355861427,-500.0,0.00023287,2]
[342001791,1731355861436,-500.0,0.00023287,2]
[342001792,1731355861445,-500.0,0.00023287,2]
[342001793,1731355861454,-500.0,0.00023287,2]
[342001794,1731355861466,-151.0,0.00023287,7]
[342001795,1731355861474,-481.092244,0.00023287,7]
[342001796,1731355861483,-481.092244,0.00023287,7]
[342001797,1731355861492,-500.0,0.00023287,2]
[342001798,1731355861501,-2252.85,0.00023287,2]
[342001799,1731355861511,-500.0,0.00023287,2]
[342001800,1731355861524,-730.29,0.00023287,2]
[342001801,1731355861638,-1046.927828,0.00023287,7]
[342001802,1731355861649,-500.0,0.00023287,2]
[342001803,1731355861659,-1046.927828,0.00023287,7]
[342001804,1731355861669,-347.700268,0.00023287,7]
[342001805,1731355861679,-551.595782,0.00023287,7]
[342001806,1731355861689,-500.0,0.00023287,2]
[342001807,1731355861698,-967.53,0.00023287,2]
[342001808,1731355861707,-500.0,0.00023287,2]
[342001809,1731355861716,-55.84935583,0.00023287,2]
[342001810,1731355861729,-444.15064417,0.00023287,2]
[342001811,1731355861738,-151.0,0.00023287,7]
[342001812,1731355861747,-347.700268,0.00023287,7]
[342001813,1731355861757,-551.595782,0.00023287,7]
[342001814,1731355861767,-1170.42,0.00023287,2]
[342001815,1731355861780,-500.0,0.00023287,2]
[342001816,1731355861789,-500.0,0.00023287,2]
[342001817,1731355861799,-2243.38,0.00023287,2]
[342001818,1731355861808,-270.47937871,0.00023287,2]
[342001819,1731355861818,-267.60359206,0.00023287,2]
[342001820,1731355861826,-624.95472624,0.00023287,2]
[342001821,1731355861835,-500.0,0.00023287,2]
[342001822,1731355861844,-9.37911515,0.00023287,2]
[342001823,1731355862034,-500.0,0.00021917,2]
[342001824,1731355862044,-500.0,0.00022191,2]
[342001825,1731355862054,-500.0,0.00022465,2]
[342001826,1731355862064,-490.62088485,0.00023287,2]
[342001827,1731355862073,-500.0,0.00023287,2]
[342001828,1731355862083,-535.78726538,0.00023287,2]
[342001829,1731355862092,-500.0,0.00023287,2]
[342001830,1731355862102,-151.0,0.00023287,7]
[342001831,1731355862111,-151.0,0.00023287,7]
[342001832,1731355862120,-500.0,0.00023287,2]
[342001833,1731355862129,-500.0,0.00023287,2]
[342001834,1731355862137,-500.0,0.00023287,2]
[342001835,1731355862147,-1768.39,0.00023287,2]
[342001836,1731355862156,-500.0,0.00023287,2]
[342001837,1731355862165,-848.08,0.00023287,2]
[342001838,1731355862175,-265.093655,0.00023287,7]
[342001839,1731355862185,-265.093655,0.00023287,7]
[342001840,1731355862195,-265.093655,0.00023287,7]
[342001841,1731355862204,-557.33,0.00023287,2]
[342001842,1731355862214,-265.093651,0.00023287,7]
[342001843,1731355862223,-1298.81,0.00023287,2]
[342001844,1731355862233,-578.39,0.00023287,2]
[342001845,1731355862242,-500.0,0.00023287,2]
[342001846,1731355862251,-198.744429,0.00023287,7]
[342001847,1731355862260,-198.744429,0.00023287,7]
[342001848,1731355862272,-500.0,0.00023287,2]
[342001849,1731355862283,-198.744429,0.00023287,7]
[342001850,1731355862293,-198.744426,0.00023287,7]
[342001851,1731355862302,-1424.44,0.00023287,2]
[342001852,1731355862311,-500.0,0.00023287,2]
[342001853,1731355862320,-924.32,0.00023287,2]
[342001854,1731355862329,-538.71,0.00023287,2]
[342001855,1731355862339,-151.0,0.00023287,7]
[342001856,1731355862348,-151.0,0.00023287,7]
[342001857,1731355862357,-151.0,0.00023287,7]
[342001858,1731355862367,-151.0,0.00023287,7]
[342001859,1731355862376,-151.0,0.00023287,7]
[342001860,1731355862386,-236.567963,0.00023287,7]
[342001861,1731355862395,-500.0,0.00023287,2]
[342001862,1731355862404,-866.81,0.00023287,2]
[342001863,1731355862413,-3916.0,0.00023287,2]
[342001864,1731355862422,-258.965566,0.00023287,7]
[342001865,1731355862431,-258.965566,0.00023287,7]
[342001866,1731355862440,-500.0,0.00023287,2]
[342001867,1731355862449,-979.82,0.00023287,2]
[342001868,1731355862458,-258.965566,0.00023287,7]
[342001869,1731355862467,-258.965556,0.00023287,7]
[342001870,1731355862476,-773.57,0.00023287,2]
[342001871,1731355862485,-500.0,0.00023287,2]
[342001872,1731355862494,-627.61,0.00023287,2]
[342001873,1731355862504,-1423.21,0.00023287,2]
[342001874,1731355862513,-1410.09,0.00023287,2]
[342001875,1731355862525,-500.0,0.00023287,2]
[342001876,1731355862534,-1799.86,0.00023287,2]
[342001877,1731355862543,-500.0,0.00023287,2]
[342001878,1731355862552,-239.97252293,0.00023287,2]
[342001879,1731355862561,-500.0,0.00023287,2]
[342001880,1731355862570,-500.0,0.00023287,2]
[342001881,1731355862580,-151.0,0.00023287,7]
[342001882,1731355862589,-500.0,0.00023287,2]
[342001883,1731355862598,-502.17,0.00023287,2]
[342001884,1731355862609,-635.42,0.00023287,2]
[342001885,1731355862619,-500.0,0.00023287,2]
[342001886,1731355862628,-4457.62,0.00023287,2]
[342001887,1731355862637,-500.0,0.00023287,2]
[342001888,1731355862647,-151.0,0.00023287,7]
[342001889,1731355862657,-151.0,0.00023287,7]
[342001890,1731355862667,-1959.14,0.00023287,2]
[342001891,1731355862677,-151.0,0.00023287,7]
[342001892,1731355862687,-151.0,0.00023287,7]
[342001893,1731355862697,-500.0,0.00023287,2]
[342001894,1731355862706,-797.46,0.00023287,2]
[342001895,1731355862716,-151.0,0.00023287,7]
[342001896,1731355862726,-151.0,0.00023287,7]
[342001897,1731355862735,-1372.25,0.00023287,2]
[342001898,1731355862745,-185.9047,0.00023287,7]
[342001899,1731355862755,-520.38,0.00023287,2]
[342001900,1731355862764,-533.77,0.00023287,2]
[342001901,1731355862776,-500.0,0.00023287,2]
[342001902,1731355862786,-210.887696,0.00023287,7]
[342001903,1731355862795,-775.44,0.00023287,2]
[342001904,1731355862804,-210.887702,0.00023287,7]
[342001905,1731355862814,-1264.27,0.00023287,2]
[342001906,1731355862824,-2436.92,0.00023287,2]
[342001907,1731355862833,-936.67,0.00023287,2]
[342001908,1731355862842,-500.0,0.00023287,2]
[342001909,1731355862853,-151.0,0.00023287,7]
[342001910,1731355862863,-500.0,0.00023287,2]
[342001911,1731355862873,-500.0,0.00023287,2]
[342001912,1731355862883,-2021.65,0.00023287,2]
[342001913,1731355862893,-1853.63,0.00023287,2]
[342001914,1731355862902,-551.30471963,0.00023287,2]
[342001915,1731355862913,-500.0,0.00023287,2]
[342001916,1731355862925,-500.0,0.00023287,2]
[342001917,1731355862935,-443.45296749,0.00023287,2]
[342001918,1731355862944,-5738.72,0.00023287,2]
[342001919,1731355862953,-571.35811322,0.00023287,2]
[342001920,1731355862965,-500.0,0.00023287,2]
[342001921,1731355862975,-500.0,0.00023287,2]
[342001922,1731355862985,-1021.15,0.00023287,2]
[342001923,1731355862994,-500.0,0.00023287,2]
[342001924,1731355863004,-500.0,0.00023287,2]
[342001925,1731355863014,-500.0,0.00023287,2]
[342001926,1731355863025,-500.0,0.00023287,2]
[342001927,1731355863035,-500.0,0.00023287,2]
[342001928,1731355863045,-500.0,0.00023287,2]
[342001929,1731355863054,-500.0,0.00023287,2]
[342001930,1731355863064,-4862.85,0.00023287,2]
[342001931,1731355863075,-183.890743,0.00023287,2]
[342001932,1731355863085,-19539.58,0.00023287,2]
[342001933,1731355863095,-183.890736,0.00023287,2]
[342001934,1731355863105,-500.0,0.00023287,2]
[342001935,1731355863115,-500.0,0.00023287,2]
[342001936,1731355863126,-637.80166298,0.00023342,2]
[342001937,1731355863136,-1000.0,0.00023342,2]
[342001938,1731355863146,-1000.0,0.00023342,2]
[342001939,1731355863156,-411.72742963,0.00023342,2]
[342001940,1731355863167,-1000.0,0.00023342,2]
[342001941,1731355863177,-1004.70300389,0.00023342,2]
[342001942,1731355863188,-1000.0,0.00023342,2]
[342001943,1731355863198,-1002.38039894,0.00023342,2]
[342001944,1731355863208,-1000.0,0.00023342,2]
[342001945,1731355863218,-298.70561841,0.00023342,2]
[342001946,1731355863229,-1000.0,0.00023342,2]
[342001947,1731355863240,-1000.0,0.00023342,2]
[342001948,1731355863253,-420.0,0.00023345,2]
[342001949,1731355863263,-168.23336014,0.00023348,8]
[342001950,1731355863275,-251.39533781,0.00023348,8]
[342001951,1731355863286,-150.05,0.00023348,8]
[342001952,1731355863296,-500.0,0.00023348,8]
[342001953,1731355863306,-150.05,0.00023348,8]
[342001954,1731355863316,-150.05,0.00023348,8]
[342001955,1731355863327,-602.65757693,0.00023348,8]
[342001956,1731355863336,-500.0,0.00023348,8]
[342001957,1731355863345,-528.227829,0.00023348,8]
[342001958,1731355863355,-551.595782,0.00023413,7]
[342001959,1731355863364,-551.595784,0.00023413,7]
[342001960,1731355863374,-702.11170065,0.00023413,4]
[342001961,1731356040560,1110.7253426,0.00020812,2]
[342001962,1731356234442,1169.27083333,0.00020845,2]
[342001964,1731356378220,238.9149338,0.00020623,2]
[342001965,1731356482578,-1169.27083333,0.00020845,2]
[342001966,1731356483884,1169.27083333,0.00020845,2]
[342001967,1731356545823,1169.27083333,0.00020845,2]
[342001968,1731356607919,1169.27083333,0.00020845,2]
[342001969,1731356611118,228.018136,0.00020758,2]
[342001970,1731356636267,152.829,0.0002655,60]
[342001971,1731356669898,1169.27083333,0.00020845,2]
[342001972,1731356678051,51809.97889645,0.0002,2]
[342001986,1731356864985,19000.0,0.00020623,2]
[342001987,1731356865019,5900.0,0.00020623,2]
[342002067,1731357035480,-1169.27083333,0.00021254,2]
[342002068,1731357035489,-312.57,0.0002137,3]
[342002069,1731357035498,-300.0,0.00021379,2]
[342002070,1731357035507,-300.0,0.00021379,2]
[342002071,1731357035516,-440.18479524,0.0002138,2]
[342002072,1731357035526,-49562.77437143,0.0002138,2]
[342002130,1731357038931,-43454.5,0.0002138,2]
[342002302,1731357040737,-36809.39807506,0.0002138,2]
[342002454,1731357042153,-486.79364302,0.0002138,2]
[342002621,1731357043880,-1169.27083333,0.00021254,2]
[342002623,1731357043890,-4930.72916667,0.0002138,2]
[342002625,1731357043901,-76985.75435723,0.0002138,2]
[342002920,1731357046696,-2171.938,0.0002138,2]
[342002944,1731357047299,-15598.11238659,0.0002138,2]
[342002945,1731357047309,-1731.79015232,0.000218,2]
[342002993,1731357139040,2275.918949,0.00020544,2]
[342003001,1731357276217,702.8899553,0.00020132,2]
[342003002,1731357287512,1585.9145318,0.00020293,2]
[342003004,1731357459122,-865.0,0.00029041,120]
[342003005,1731357459412,-302.0,0.00029041,120]
[342003007,1731357520447,209.123,0.0002058,2]
[342003009,1731357540805,6477.1652381,0.00020043,2]
[342003013,1731357644465,306.8450153,0.00020033,2]
[342003016,1731357755930,2542.1433105,0.00020023,2]
[342003017,1731357755961,1872.4214065,0.00020023,2]
[342003018,1731357756295,4414.564717,0.00020708,2]
[342003019,1731357792347,166.886208,0.00019806,2]
[342003020,1731357812218,159.418787,0.00013973,2]
[342003393,1731358234911,-342.8324799,0.000209,3]
[342003401,1731358234970,-7557.1675201,0.000209,3]
[342003403,1731358234979,-1169.27083333,0.00020905,2]
[342003405,1731358234988,-300.0,0.00020972,2]
[342003407,1731358234998,-500.0,0.00020973,2]
[342003409,1731358235007,-500.0,0.00020973,2]
[342003411,1731358235016,-500.0,0.00020973,2]
[342003413,1731358235026,-500.0,0.00020973,2]
[342003415,1731358235035,-300.0,0.00020996,2]
[342003417,1731358235043,-582.85449129,0.00020999,2]
[342003419,1731358235052,-500.0,0.00020999,2]
[342003421,1731358235061,-174.52357734,0.00020999,2]
[342003423,1731358235070,-226.81270423,0.00020999,2]
[342003425,1731358235079,-168.46729526,0.00020999,2]
[342003427,1731358235088,-272.54004109,0.00020999,2]
[342003429,1731358235097,-293.45653016,0.00021,2]
[342003431,1731358235106,-48799.11646786,0.00021,2]
[342003449,1731358235265,-42000.089831,0.00021,2]
[342003697,1731358237922,-180000.04799998,0.00021,2]
[342003698,1731358238056,-1333.0,0.00021,2]
[342003699,1731358238068,-335.99,0.00021,2]
[342004216,1731358243324,-21662.5,0.00021,2]
[342004222,1731358243366,-500.0,0.00021,2]
[342004230,1731358243441,-9155.78549358,0.00021,2]
[342004233,1731358243453,-5775.19933381,0.00021,2]
[342004523,1731358246130,-210035.19214199,0.00021,2]
[342004750,1731358315856,563.408071,0.00020261,2]
[342004752,1731358329713,178.650918,0.00020212,2]
[342004753,1731358329933,178.650918,0.00020313,2]
[342004755,1731358351200,3625.7429311,0.00020825,2]
[342004757,1731358451248,1471.521572,0.00020002,2]
[342004758,1731358452719,1471.521572,0.00020687,2]
[342004764,1731358636508,3172.52506473,0.000208,2]
[342004765,1731358644584,152.797,0.0002812,120]
[342004766,1731358650190,2724.68783467,0.0002,2]
[342004767,1731358650220,2716.95231221,0.0002,2]
[342004769,1731358716912,1169.27083333,0.00020847,2]
[342004773,1731358916864,2775.95943163,0.000208,2]
[342004774,1731358926638,4579.77382518,0.00020493,2]
[342004775,1731358926953,4579.77382519,0.00020591,2]
[342004779,1731359029682,1169.27083333,0.00020847,2]
[342004783,1731359110925,237.8032527,0.00019936,2]
[342004788,1731359197189,2428.96450272,0.000208,2]
[342004793,1731359341229,342.23118371,0.00020847,2]
[342004794,1731359341259,827.03964962,0.00020847,2]
[342004815,1731359431945,-813.69049216,0.00020875,2]
[342004823,1731359432008,-355.58034117,0.00020875,2]
[342004825,1731359432017,-300.0,0.00020899,2]
[342004827,1731359432027,-300.0,0.00020899,2]
[342004829,1731359432036,-500.0,0.00020899,2]
[342004831,1731359432045,-551.37792448,0.00020899,2]
[342004833,1731359432054,-363.76624152,0.000209,2]
[342004835,1731359432063,-7022.61179363,0.000209,2]
[342004948,1731359438126,-5354.50003,0.000209,2]
[342004950,1731359438139,-2287.26592999,0.000209,2]
[342004956,1731359438186,-12595.58891331,0.000209,2]
[342004958,1731359438195,-13488.94158669,0.000209,2]
[342004960,1731359438206,-997.25762644,0.000209,2]
[342005146,1731359440049,-13017.81187258,0.000209,2]
[342005148,1731359440060,-911.39078855,0.000209,2]
[342005436,1731359442842,490.50719,0.00019961,2]
[342005451,1731359443215,-48756.33783805,0.000209,2]
[342005452,1731359443226,-2163.19814029,0.000209,2]
[342005453,1731359443237,-65369.21435134,0.000209,2]
[342005454,1731359443246,-5545.86124311,0.000209,3]
[342005455,1731359443258,-633.91271917,0.000209,3]
[342005456,1731359443267,-226.47921759,0.00020973,10]
[342005457,1731359443277,-2331.02588405,0.00021,2]
[342005458,1731359443373,490.50719,0.00020646,2]
[342005507,1731359479497,18191.94597038,0.000208,2]
[342005508,1731359479529,20000.0,0.000208,2]
[342005509,1731359479561,20000.0,0.000208,2]
[342005510,1731359479594,20000.0,0.000208,2]
[342005511,1731359479620,151808.05402962,0.000208,2]
[342005516,1731359920481,167.298,0.0002058,2]
[342005518,1731360178853,163.502396,0.0001999,2]
[342005519,1731360179195,163.502396,0.00020675,2]
[342005542,1731360503104,277.31532,0.00019986,2]
[342005543,1731360528862,1180.203,0.00025,120]
[342005544,1731360528891,1924.40197214,0.00025,120]
[342005609,1731360632236,-1169.27083333,0.00020846,2]
[342005610,1731360632246,-1169.27083333,0.00020847,2]
[342005612,1731360632257,-3185.86615466,0.00020899,2]
[342005614,1731360632267,-497.58862528,0.000209,2]
[342005616,1731360632277,-342.8324799,0.000209,3]
[342005618,1731360632287,-300.0,0.00020972,2]
[342005620,1731360632296,-300.0,0.00020972,2]
[342005622,1731360632305,-500.0,0.00020973,2]
[342005625,1731360632324,-505.56950853,0.00020973,2]
[342005627,1731360632333,-500.0,0.00020973,2]
[342005628,1731360632342,-501.46681774,0.00020973,2]
[342005631,1731360632351,-481.00814949,0.00020973,2]
[342005910,1731360635348,-18.99185051,0.00020973,2]
[342005912,1731360635359,-500.0,0.00020973,2]
[342005914,1731360635368,-500.0,0.00020973,2]
[342005916,1731360635378,-500.0,0.00020973,2]
[342005918,1731360635387,-500.0,0.00020973,2]
[342005920,1731360635396,-500.0,0.00020973,2]
[342005922,1731360635406,-500.0,0.00020973,2]
[342005924,1731360635415,-500.0,0.00020973,2]
[342005926,1731360635424,-500.0,0.00020973,2]
[342005928,1731360635433,-773.36,0.0002099,3]
[342005930,1731360635443,-930.29748875,0.00020999,2]
[342005932,1731360635452,-70320.28266926,0.00020999,2]
[342005934,1731360635461,-349.1844179,0.00020999,2]
[342005936,1731360635470,-269.99890493,0.00020999,2]
[342005938,1731360635479,-500.0,0.00020999,2]
[342005940,1731360635489,-500.0,0.00020999,2]
[342005942,1731360635498,-500.0,0.00020999,2]
[342005944,1731360635508,-250.50927984,0.00020999,2]
[342005946,1731360635518,-500.0,0.00020999,2]
[342005948,1731360635527,-500.0,0.00020999,2]
[342005950,1731360635537,-500.0,0.00020999,2]
[342005952,1731360635546,-500.0,0.00020999,2]
[342005954,1731360635555,-500.0,0.00020999,2]
[342005956,1731360635566,-500.0,0.00020999,2]
[342005958,1731360635577,-500.0,0.00020999,2]
[342005960,1731360635586,-500.0,0.00020999,2]
[342005962,1731360635598,-500.0,0.00020999,2]
[342005964,1731360635608,-500.0,0.00020999,2]
[342005966,1731360635618,-500.0,0.00020999,2]
[342005968,1731360635628,-500.0,0.00020999,2]